fUSD/lending_fUSD_20240625
["ID","MTS","AMOUNT","RATE_DAILY","PERIOD"]
[330378773,1719337966136,-50997.71,0.00021095,2]
[330378774,1719337966150,-500.0,0.00021095,2]
[330378775,1719337966167,-7330.4,0.00021095,2]
[330378776,1719337966186,-1090.36,0.00021095,2]
[330378777,1719337966201,-3826.38,0.00021095,2]
[330378778,1719337966218,-588.44,0.00021095,2]
[330378779,1719337966234,-500.0,0.00021095,2]
[330378780,1719337966249,-1076.79,0.00021095,2]
[330378781,1719337966264,-875.7,0.00021095,2]
[330378782,1719337966278,-2013.15,0.00021095,2]
[330378783,1719337966293,-1764.68,0.00021095,2]
[330378784,1719337966308,-2546.28,0.00021095,2]
[330378785,1719337966322,-500.0,0.00021095,2]
[330378786,1719337966337,-710.06,0.00021095,2]
[330378787,1719337966352,-1202.57,0.00021095,2]
[330378788,1719337966367,-575.15,0.00021095,2]
[330378789,1719337966381,-2661.42,0.00021095,2]
[330378790,1719337966396,-2226.45,0.00021095,2]
[330378791,1719337966412,-500.0,0.00021095,2]
[330378792,1719337966426,-500.0,0.00021095,2]
[330378793,1719337966440,-632.99,0.00021095,2]
[330378794,1719337966455,-500.0,0.00021095,2]
[330378795,1719337966469,-13097.11,0.00021095,2]
[330378796,1719337966483,-538.22,0.00021095,2]
[330378797,1719337966498,-1320.08,0.00021095,2]
[330378798,1719337966514,-500.0,0.00021095,2]
[330378799,1719337966528,-500.0,0.00021095,2]
[330378800,1719337966543,-500.0,0.00021095,2]
[330378801,1719337966558,-1721.67,0.00021095,2]
[330378802,1719337966572,-1003.19,0.00021095,2]
[330378803,1719337966586,-1938.52,0.00021095,2]
[330378804,1719337966600,-2588.15,0.00021095,2]
[330378805,1719337966616,-38471.4,0.00021095,2]
[330378806,1719337966631,-2469.45,0.00021095,2]
[330378807,1719337966645,-7195.96,0.00021095,2]
[330378808,1719337966661,-500.0,0.00021095,2]
[330378809,1719337966676,-3038.22,0.00021095,2]
[330378810,1719337966690,-3163.49,0.00021095,2]
[330378811,1719337966711,-39156.53,0.00021095,2]
[330378812,1719337966726,-3940.81,0.00021095,2]
[330378813,1719337966741,-500.0,0.00021095,2]
[330378814,1719337966756,-860.82,0.00021095,2]
[330378815,1719337966770,-1243.76,0.00021095,2]
[330378816,1719337966786,-935.24,0.00021095,2]
[330378817,1719337966802,-463.7181057,0.00021095,2]
[330378818,1719337966817,-500.0,0.00021095,2]
[330378819,1719337966832,-500.0,0.00021095,2]
[330378820,1719337966847,-5532.62,0.00021095,2]
[330378821,1719337966863,-500.0,0.00021095,2]
[330378822,1719337966879,-2133.33,0.00021095,2]
[330378823,1719337966894,-500.0,0.00021095,2]
[330378824,1719337966910,-27639.02,0.00021095,2]
[330378825,1719337966925,-500.0,0.00021095,2]
[330378826,1719337966941,-1003.49,0.00021095,2]
[330378827,1719337966956,-804.85,0.00021095,2]
[330378828,1719337966972,-3599.25,0.00021095,2]
[330378829,1719337966989,-500.0,0.00021095,2]
[330378830,1719337967005,-3089.03,0.00021095,2]
[330378831,1719337967021,-13348.12,0.00021095,2]
[330378832,1719337967036,-3865.6,0.00021095,2]
[330378833,1719337967052,-1591.79,0.00021095,2]
[330378834,1719337967066,-553.94451553,0.00021095,2]
[330378835,1719337967081,-828.38,0.00021095,2]
[330378836,1719337967095,-500.0,0.00021095,2]
[330378837,1719337967112,-19322.86,0.00021095,2]
[330378838,1719337967127,-468.14145741,0.00021095,2]
[330378839,1719337967143,-500.0,0.00021095,2]
[330378840,1719337967159,-3823.25,0.00021095,2]
[330378841,1719337967176,-500.0,0.00021095,2]
[330378842,1719337967196,-2767.76,0.00021095,2]
[330378843,1719337967211,-516.72,0.00021095,2]
[330378844,1719337967227,-500.0,0.00021095,2]
[330378845,1719337967242,-2132.96,0.00021095,2]
[330378846,1719337967258,-829.42,0.00021095,2]
[330378847,1719337967274,-1930.49,0.00021095,2]
[330378848,1719337967289,-768.12,0.00021095,2]
[330378849,1719337967304,-2051.61,0.00021095,2]
[330378850,1719337967319,-1106.84,0.00021095,2]
[330378851,1719337967333,-500.0,0.00021095,2]
[330378852,1719337967349,-3643.02,0.00021095,2]
[330378853,1719337967365,-500.0,0.00021095,2]
[330378854,1719337967379,-2716.1,0.00021095,2]
[330378855,1719337967396,-571.25,0.00021095,2]
[330378856,1719337967412,-500.0,0.00021095,2]
[330378857,1719337967427,-9367.05,0.00021095,2]
[330378858,1719337967443,-500.0,0.00021095,2]
[330378859,1719337967457,-5116.79,0.00021095,2]
[330378860,1719337967820,-500.0,0.00021095,2]
[330378861,1719337967840,-500.0,0.00021095,2]
[330378862,1719337967851,-6152.62,0.00021095,2]
[330378863,1719337967862,-500.0,0.00021095,2]
[330378864,1719337967871,-658.03,0.00021095,2]
[330378865,1719337967882,-1026.1,0.00021095,2]
[330378866,1719337967892,-20168.94,0.00021095,2]
[330378867,1719337967901,-1760.02,0.00021095,2]
[330378868,1719337967910,-1640.24,0.00021095,2]
[330378869,1719337967920,-500.0,0.00021095,2]
[330378870,1719337967930,-500.0,0.00021095,2]
[330378871,1719337967940,-19689.46,0.00021095,2]
[330378872,1719337967949,-500.0,0.00021095,2]
[330378873,1719337967959,-1038.72,0.00021095,2]
[330378874,1719337967969,-3388.45,0.00021095,2]
[330378875,1719337967978,-500.0,0.00021095,2]
[330378876,1719337967988,-500.0,0.00021095,2]
[330378877,1719337967998,-500.0,0.00021095,2]
[330378878,1719337968007,-709.2,0.00021095,2]
[330378879,1719337968018,-4133.33,0.00021095,2]
[330378880,1719337968028,-1249.47,0.00021095,2]
[330378881,1719337968039,-2499.52,0.00021095,2]
[330378882,1719337968048,-991.31,0.00021095,2]
[330378883,1719337968058,-500.0,0.00021095,2]
[330378884,1719337968068,-2511.23,0.00021095,2]
[330378885,1719337968077,-16464.04,0.00021095,2]
[330378886,1719337968087,-1636.71,0.00021095,2]
[330378887,1719337968097,-500.0,0.00021095,2]
[330378888,1719337968107,-500.0,0.00021095,2]
[330378889,1719337968116,-1279.93,0.00021095,2]
[330378890,1719337968125,-4519.25,0.00021095,2]
[330378891,1719337968135,-711.6,0.00021095,2]
[330378892,1719337968144,-635.3,0.00021095,2]
[330378893,1719337968154,-813.02,0.00021095,2]
[330378894,1719337968163,-867.36,0.00021095,2]
[330378895,1719337968177,-984.69,0.00021095,2]
[330378896,1719337968187,-2863.52,0.00021095,2]
[330378897,1719337968196,-1078.44,0.00021095,2]
[330378898,1719337968207,-579.91,0.00021095,2]
[330378899,1719337968216,-1635.81,0.00021095,2]
[330378900,1719337968226,-894.63,0.00021095,2]
[330378901,1719337968235,-500.0,0.00021095,2]
[330378902,1719337968246,-511.61,0.00021095,2]
[330378903,1719337968257,-6876.69,0.00021095,2]
[330378904,1719337968267,-724.58,0.00021095,2]
[330378905,1719337968276,-770.48,0.00021095,2]
[330378906,1719337968285,-500.0,0.00021095,2]
[330378907,1719337968295,-500.0,0.00021095,2]
[330378908,1719337968308,-1778.16,0.00021095,2]
[330378909,1719337968318,-2214.33,0.00021095,2]
[330378910,1719337968327,-627.16,0.00021095,2]
[330378911,1719337968338,-12811.41,0.00021095,2]
[330378912,1719337968347,-500.0,0.00021095,2]
[330378913,1719337968357,-1194.74,0.00021095,2]
[330378914,1719337968366,-952.48,0.00021095,2]
[330378915,1719337968376,-250.0,0.00021095,2]
[330378916,1719337968389,-646.01,0.00021095,2]
[330378917,1719337968399,-533.6,0.00021095,2]
[330378918,1719337968409,-500.0,0.00021095,2]
[330378919,1719337968418,-1023.86,0.00021095,2]
[330378920,1719337968428,-6829.1,0.00021095,2]
[330378921,1719337968438,-8218.06,0.00021095,2]
[330378922,1719337968447,-500.0,0.00021095,2]
[330378923,1719337968457,-500.0,0.00021095,2]
[330378924,1719337968467,-2323.75,0.00021095,2]
[330378925,1719337968476,-500.0,0.00021095,2]
[330378926,1719337968486,-1807.94,0.00021095,2]
[330378927,1719337968496,-539.11,0.00021095,2]
[330378928,1719337968507,-11065.02,0.00021095,2]
[330378929,1719337968516,-1104.07,0.00021095,2]
[330378930,1719337968526,-389.10974856,0.00021095,2]
[330378931,1719337968536,-663.89,0.00021095,2]
[330378932,1719337968546,-600.35,0.00021095,2]
[330378933,1719337968555,-501.0,0.00021095,2]
[330378934,1719337968565,-1481.84,0.00021095,2]
[330378935,1719337968574,-522.35,0.00021095,2]
[330378936,1719337968583,-661.17,0.00021095,2]
[330378937,1719337968592,-500.0,0.00021095,2]
[330378938,1719337968602,-5478.65,0.00021095,2]
[330378939,1719337968611,-3657.63,0.00021095,2]
[330378940,1719337968620,-886.73,0.00021095,2]
[330378941,1719337968630,-1680.53,0.00021095,2]
[330378942,1719337968639,-500.0,0.00021095,2]
[330378943,1719337968648,-2543.7,0.00021095,2]
[330378944,1719337968659,-10088.1,0.00021095,2]
[330378945,1719337968669,-2456.25,0.00021095,2]
[330378946,1719337968678,-1656.09,0.00021095,2]
[330378947,1719337968688,-500.0,0.00021095,2]
[330378948,1719337968697,-2328.62,0.00021095,2]
[330378949,1719337968706,-3868.22,0.00021095,2]
[330378950,1719337968716,-1796.89,0.00021095,2]
[330378951,1719337968725,-500.0,0.00021095,2]
[330378952,1719337968735,-4014.66,0.00021095,2]
[330378953,1719337968744,-500.0,0.00021095,2]
[330378954,1719337968754,-7129.8,0.00021095,2]
[330378955,1719337968764,-500.0,0.00021095,2]
[330378956,1719337968774,-500.0,0.00021095,2]
[330378957,1719337968784,-500.0,0.00021095,2]
[330378958,1719337968793,-3567.64,0.00021095,2]
[330378959,1719337968803,-914.75,0.00021095,2]
[330378960,1719337968812,-1821.82,0.00021095,2]
[330378961,1719337968821,-2063.73,0.00021095,2]
[330378962,1719337968831,-1475.68,0.00021095,2]
[330378963,1719337968840,-500.0,0.00021095,2]
[330378964,1719337968850,-546.57,0.00021095,2]
[330378965,1719337968860,-500.0,0.00021095,2]
[330378966,1719337968869,-750.23,0.00021095,2]
[330378967,1719337968879,-559.73,0.00021095,2]
[330378968,1719337968888,-500.0,0.00021095,2]
[330378969,1719337968898,-500.0,0.00021095,2]
[330378970,1719337968908,-3434.69,0.00021095,2]
[330378971,1719337968918,-500.0,0.00021095,2]
[330378972,1719337968928,-14507.85,0.00021095,2]
[330378973,1719337968938,-2198.32,0.00021095,2]
[330378974,1719337968948,-567.673136,0.00021095,2]
[330378975,1719337968957,-1011.11,0.00021095,2]
[330378976,1719337968967,-500.0,0.00021095,2]
[330378977,1719337968977,-1316.74,0.00021095,2]
[330378978,1719337968986,-450.66700671,0.00021095,2]
[330378979,1719337968996,-38249.94,0.00021095,2]
[330378980,1719337969006,-887.9,0.00021095,2]
[330378981,1719337969015,-500.0,0.00021095,2]
[330378982,1719337969025,-697.9,0.00021095,2]
[330378983,1719337969034,-1003.68,0.00021095,2]
[330378984,1719337969044,-500.0,0.00021095,2]
[330378985,1719337969054,-500.0,0.00021095,2]
[330378986,1719337969063,-500.0,0.00021095,2]
[330378987,1719337969073,-27014.67,0.00021095,2]
[330378988,1719337969082,-500.0,0.00021095,2]
[330378989,1719337969091,-500.0,0.00021095,2]
[330378990,1719337969101,-1975.91,0.00021095,2]
[330378991,1719337969111,-1550.6,0.00021095,2]
[330378992,1719337969120,-4800.32,0.00021095,2]
[330378993,1719337969131,-500.0,0.00021095,2]
[330378994,1719337969140,-500.0,0.00021095,2]
[330378995,1719337969150,-726.31,0.00021095,2]
[330378996,1719337969160,-500.0,0.00021095,2]
[330378997,1719337969171,-1578.23,0.00021095,2]
[330378998,1719337969185,-1230.61,0.00021095,2]
[330378999,1719337969194,-500.0,0.00021095,2]
[330379000,1719337969204,-500.0,0.00021095,2]
[330379001,1719337969215,-500.0,0.00021095,2]
[330379002,1719337969224,-3087.64,0.00021095,2]
[330379003,1719337969234,-500.0,0.00021095,2]
[330379004,1719337969243,-1806.83,0.00021095,2]
[330379005,1719337969252,-3280.0,0.00021095,2]
[330379006,1719337969263,-500.0,0.00021095,2]
[330379007,1719337969272,-679.84,0.00021095,2]
[330379008,1719337969282,-1791.93,0.00021095,2]
[330379009,1719337969292,-500.0,0.00021095,2]
[330379010,1719337969301,-874.77,0.00021095,2]
[330379011,1719337969310,-709.69,0.00021095,2]
[330379012,1719337969320,-858.99,0.00021095,2]
[330379013,1719337969330,-454.1629412,0.00021095,2]
[330379014,1719337969339,-3522.11,0.00021095,2]
[330379015,1719337969349,-500.0,0.00021095,2]
[330379016,1719337969358,-1076.73,0.00021095,2]
[330379017,1719337969367,-17618.37,0.00021095,2]
[330379018,1719337969377,-587.49,0.00021095,2]
[330379019,1719337969387,-500.0,0.00021095,2]
[330379020,1719337969397,-500.0,0.00021095,2]
[330379021,1719337969409,-520.89074897,0.00021095,2]
[330379022,1719337969418,-2768.81,0.00021095,2]
[330379023,1719337969428,-9360.45,0.00021095,2]
[330379024,1719337969439,-1531.05,0.00021095,2]
[330379025,1719337969448,-500.0,0.00021095,2]
[330379026,1719337969458,-588.37,0.00021095,2]
[330379027,1719337969468,-654.5,0.00021095,2]
[330379028,1719337969477,-2960.82,0.00021095,2]
[330379029,1719337969487,-1310.42,0.00021095,2]
[330379030,1719337969496,-500.0,0.00021095,2]
[330379031,1719337969507,-500.0,0.00021095,2]
[330379032,1719337969518,-3587.57,0.00021095,2]
[330379033,1719337969533,-2408.83,0.00021095,2]
[330379034,1719337969543,-3984.57,0.00021095,2]
[330379035,1719337969553,-4130.12,0.00021095,2]
[330379036,1719337969563,-799.95,0.00021095,2]
[330379037,1719337969573,-1063.93,0.00021095,2]
[330379038,1719337969583,-1748.04,0.00021095,2]
[330379039,1719337969593,-500.0,0.00021095,2]
[330379040,1719337969604,-10614.48,0.00021095,2]
[330379041,1719337969614,-792.5,0.00021095,2]
[330379042,1719337969624,-550.72,0.00021095,2]
[330379043,1719337969635,-3298.16,0.00021095,2]
[330379044,1719337969646,-1468.33,0.00021095,2]
[330379045,1719337969657,-500.0,0.00021095,2]
[330379046,1719337969667,-5401.34,0.00021095,2]
[330379047,1719337969676,-1075.13,0.00021095,2]
[330379048,1719337969686,-1746.97,0.00021095,2]
[330379049,1719337969696,-12850.46,0.00021095,2]
[330379050,1719337969706,-500.0,0.00021095,2]
[330379051,1719337969715,-3728.91,0.00021095,2]
[330379052,1719337969728,-1619.57,0.00021095,2]
[330379053,1719337969738,-533.36,0.00021095,2]
[330379054,1719337969747,-6211.69,0.00021095,2]
[330379055,1719337969757,-500.0,0.00021095,2]
[330379056,1719337969767,-765.33,0.00021095,2]
[330379057,1719337969777,-687.55,0.00021095,2]
[330379058,1719337969787,-1253.15,0.00021095,2]
[330379059,1719337969796,-500.0,0.00021095,2]
[330379060,1719337969805,-3214.85,0.00021095,2]
[330379061,1719337969816,-500.0,0.00021095,2]
[330379062,1719337969827,-565.11109109,0.00021095,2]
[330379063,1719337969838,-1196.83,0.00021095,2]
[330379064,1719337969847,-1014.47,0.00021095,2]
[330379065,1719337969857,-1365.93,0.00021095,2]
[330379066,1719337969867,-2068.49,0.00021095,2]
[330379067,1719337969876,-3277.71,0.00021095,2]
[330379068,1719337969886,-2994.62,0.00021095,2]
[330379069,1719337969895,-4078.1,0.00021095,2]
[330379070,1719337969907,-500.0,0.00021095,2]
[330379071,1719337969916,-500.0,0.00021095,2]
[330379072,1719337969926,-4726.64,0.00021095,2]
[330379073,1719337969936,-5216.67,0.00021095,2]
[330379074,1719337969945,-500.0,0.00021095,2]
[330379075,1719337969955,-790.4,0.00021095,2]
[330379076,1719337969964,-1482.28,0.00021095,2]
[330379077,1719337969974,-1436.06,0.00021095,2]
[330379078,1719337969984,-686.96,0.00021095,2]
[330379079,1719337969994,-500.0,0.00021095,2]
[330379080,1719337970003,-1827.73,0.00021095,2]
[330379081,1719337970014,-500.0,0.00021095,2]
[330379082,1719337970024,-500.0,0.00021095,2]
[330379083,1719337970034,-500.0,0.00021095,2]
[330379084,1719337970043,-3074.5,0.00021095,2]
[330379085,1719337970053,-500.0,0.00021095,2]
[330379086,1719337970062,-8866.98031256,0.00021095,2]
[330379087,1719337970072,-8866.98031256,0.00021095,2]
[330379088,1719337970082,-8866.98031256,0.00021095,2]
[330379089,1719337970091,-8866.98031256,0.00021095,2]
[330379090,1719337970101,-151.0,0.00021201,2]
[330379091,1719337970111,-12053.56851484,0.00021217,2]
[330379092,1719337970121,-341.14071291,0.00021369,2]
[330379093,1719337970130,-500.0,0.00021369,2]
[330379094,1719337970140,-500.0,0.00021369,2]
[330379095,1719337970150,-500.0,0.00021369,2]
[330379096,1719337970162,-500.0,0.00021369,2]
[330379097,1719337970172,-2500.0,0.00021369,3]
[330379098,1719337970184,-500.0,0.00021369,2]
[330379099,1719337970193,-500.0,0.00021369,2]
[330379100,1719337970202,-500.0,0.00021369,2]
[330379101,1719337970214,-500.0,0.00021369,2]
[330379102,1719337970224,-500.0,0.00021369,2]
[330379103,1719337970234,-1041.25,0.00021369,2]
[330379104,1719337970244,-746.42,0.00021369,2]
[330379105,1719337970256,-867.14,0.00021369,2]
[330379106,1719337970266,-299.3972815,0.00021369,2]
[330379107,1719337970276,-500.0,0.00021369,2]
[330379108,1719337970285,-751.61,0.00021369,2]
[330379109,1719337970295,-500.0,0.00021369,2]
[330379110,1719337970306,-1356.99,0.00021369,2]
[330379111,1719337970317,-1175.6,0.00021369,2]
[330379112,1719337970327,-500.0,0.00021369,2]
[330379113,1719337970337,-1372.16,0.00021369,2]
[330379114,1719337970346,-2625.16,0.00021369,2]
[330379115,1719337970356,-500.0,0.00021369,2]
[330379116,1719337970367,-500.0,0.00021369,2]
[330379117,1719337970376,-1523.16,0.00021369,2]
[330379118,1719337970388,-531.38,0.00021369,2]
[330379119,1719337970398,-761.88,0.00021369,2]
[330379120,1719337970413,-253.57079431,0.00021369,2]
[330379121,1719337970424,-983.79,0.00021369,2]
[330379122,1719337970433,-1492.67,0.00021369,2]
[330379123,1719337970443,-638.84,0.00021369,2]
[330379124,1719337970452,-1515.14,0.00021369,2]
[330379125,1719337970461,-1556.79,0.00021369,2]
[330379126,1719337970471,-785.12,0.00021369,2]
[330379127,1719337970481,-617.17,0.00021369,2]
[330379128,1719337970490,-865.89,0.00021369,2]
[330379129,1719337970500,-1076.26,0.00021369,2]
[330379130,1719337970510,-500.0,0.00021369,2]
[330379131,1719337970520,-554.99,0.00021369,2]
[330379132,1719337970530,-1752.72,0.00021369,2]
[330379133,1719337970540,-500.0,0.00021369,2]
[330379134,1719337970550,-1673.1,0.00021369,2]
[330379135,1719337970560,-500.0,0.00021369,2]
[330379136,1719337970570,-500.0,0.00021369,2]
[330379137,1719337970580,-1196.42,0.00021369,2]
[330379138,1719337970590,-500.0,0.00021369,2]
[330379139,1719337970600,-546.0,0.00021369,2]
[330379140,1719337970610,-500.0,0.00021369,2]
[330379141,1719337970620,-500.0,0.00021369,2]
[330379142,1719337970630,-1230.45,0.00021369,2]
[330379143,1719337970640,-1638.27,0.00021369,2]
[330379144,1719337970651,-721.81,0.00021369,2]
[330379145,1719337970669,-500.0,0.00021369,2]
[330379146,1719337970679,-916.29,0.00021369,2]
[330379147,1719337970688,-1110.71,0.00021369,2]
[330379148,1719337970697,-1305.49,0.00021369,2]
[330379149,1719337970707,-813.41,0.00021369,2]
[330379150,1719337970716,-500.0,0.00021369,2]
[330379151,1719337970725,-738.2,0.00021369,2]
[330379152,1719337970735,-629.35,0.00021369,2]
[330379153,1719337970745,-500.0,0.00021369,2]
[330379154,1719337970754,-2096.31,0.00021369,2]
[330379155,1719337970764,-2936.53,0.00021369,2]
[330379156,1719337970774,-380.94976539,0.00021369,2]
[330379157,1719337970784,-500.0,0.00021369,2]
[330379158,1719337970795,-500.0,0.00021369,2]
[330379159,1719337970805,-500.0,0.00021369,2]
[330379160,1719337970815,-500.0,0.00021369,2]
[330379161,1719337970826,-500.0,0.00021369,2]
[330379162,1719337970836,-717.21,0.00021369,2]
[330379163,1719337970847,-759.42,0.00021369,2]
[330379164,1719337970856,-524.13,0.00021369,2]
[330379165,1719337970866,-598.1,0.00021369,2]
[330379166,1719337970875,-589.92,0.00021369,2]
[330379167,1719337970885,-500.0,0.00021369,2]
[330379168,1719337970894,-971.03,0.00021369,2]
[330379169,1719337970910,-675.22,0.00021369,2]
[330379170,1719337970920,-500.0,0.00021369,2]
[330379171,1719337970929,-905.04,0.00021369,2]
[330379172,1719337970938,-669.2,0.00021369,2]
[330379173,1719337970947,-500.0,0.00021369,2]
[330379174,1719337970956,-1247.28,0.00021369,2]
[330379175,1719337970966,-1109.18,0.00021369,2]
[330379176,1719337970975,-500.0,0.00021369,2]
[330379177,1719337970984,-500.0,0.00021369,2]
[330379178,1719337970992,-500.0,0.00021369,2]
[330379179,1719337971001,-500.0,0.00021369,2]
[330379180,1719337971011,-1096.34,0.00021369,2]
[330379181,1719337971020,-1550.19,0.00021369,2]
[330379182,1719337971029,-519.47572529,0.00021369,2]
[330379183,1719337971039,-500.0,0.00021369,2]
[330379184,1719337971049,-757.11,0.00021369,2]
[330379185,1719337971059,-501.16677013,0.00021369,2]
[330379186,1719337971068,-1826.94,0.00021369,2]
[330379187,1719337971078,-621.30103984,0.00021369,2]
[330379188,1719337971088,-773.72,0.00021369,2]
[330379189,1719337971097,-500.0,0.00021369,2]
[330379190,1719337971107,-1728.25,0.00021369,2]
[330379191,1719337971116,-973.7,0.00021369,2]
[330379192,1719337971125,-773.97,0.00021369,2]
[330379193,1719337971134,-1154.02,0.00021369,2]
[330379194,1719337971413,-1784.58,0.00021369,2]
[330379195,1719337971423,-658.68,0.00021369,2]
[330379196,1719337971433,-525.47,0.00021369,2]
[330379197,1719337971443,-500.0,0.00021369,2]
[330379198,1719337971452,-894.86,0.00021369,2]
[330379199,1719337971461,-1106.26,0.00021369,2]
[330379200,1719337971471,-556.82,0.00021369,2]
[330379201,1719337971480,-1088.59,0.00021369,2]
[330379202,1719337971490,-155.76,0.00021369,2]
[330379203,1719337971500,-500.0,0.00021369,2]
[330379204,1719337971510,-1061.87,0.00021369,2]
[330379205,1719337971519,-1519.41,0.00021369,2]
[330379206,1719337971529,-1886.29,0.00021369,2]
[330379207,1719337971539,-671.23,0.00021369,2]
[330379208,1719337971549,-842.01,0.00021369,2]
[330379209,1719337971559,-500.0,0.00021369,2]
[330379210,1719337971568,-521.99009252,0.00021369,2]
[330379211,1719337971578,-848.32,0.00021369,2]
[330379212,1719337971587,-500.0,0.00021369,2]
[330379213,1719337971597,-571.84,0.00021369,2]
[330379214,1719337971607,-547.07,0.00021369,2]
[330379215,1719337971616,-1275.37,0.00021369,2]
[330379216,1719337971626,-708.32,0.00021369,2]
[330379217,1719337971635,-500.0,0.00021369,2]
[330379218,1719337971646,-545.35,0.00021369,2]
[330379219,1719337971658,-500.0,0.00021369,2]
[330379220,1719337971667,-1199.18,0.00021369,2]
[330379221,1719337971677,-500.0,0.00021369,2]
[330379222,1719337971687,-2554.0,0.00021369,2]
[330379223,1719337971697,-500.0,0.00021369,2]
[330379224,1719337971707,-896.63,0.00021369,2]
[330379225,1719337971716,-1510.6,0.00021369,2]
[330379226,1719337971726,-899.64,0.00021369,2]
[330379227,1719337971736,-439.7259075,0.00021369,2]
[330379228,1719337971745,-678.52,0.00021369,2]
[330379229,1719337971755,-2297.51,0.00021369,2]
[330379230,1719337971764,-294.679346,0.00021369,2]
[330379231,1719337971774,-500.0,0.00021369,2]
[330379232,1719337971783,-500.0,0.00021369,2]
[330379233,1719337971792,-706.8,0.00021369,2]
[330379234,1719337971802,-500.0,0.00021369,2]
[330379235,1719337971812,-500.0,0.00021369,2]
[330379236,1719337971822,-500.0,0.00021369,2]
[330379237,1719337971832,-2864.14,0.00021369,2]
[330379238,1719337971844,-500.0,0.00021369,2]
[330379239,1719337971853,-500.0,0.00021369,2]
[330379240,1719337971863,-767.35,0.00021369,2]
[330379241,1719337971872,-500.0,0.00021369,2]
[330379242,1719337971881,-1219.8,0.00021369,2]
[330379243,1719337971891,-817.0,0.00021369,2]
[330379244,1719337971901,-602.68,0.00021369,2]
[330379245,1719337971911,-500.0,0.00021369,2]
[330379246,1719337971920,-750.73,0.00021369,2]
[330379247,1719337971930,-983.23,0.00021369,2]
[330379248,1719337971940,-2190.09,0.00021369,2]
[330379249,1719337971949,-1053.59,0.00021369,2]
[330379250,1719337971959,-500.0,0.00021369,2]
[330379251,1719337971969,-1755.84,0.00021369,2]
[330379252,1719337971978,-502.66,0.00021369,2]
[330379253,1719337971987,-811.39,0.00021369,2]
[330379254,1719337971996,-500.0,0.00021369,2]
[330379255,1719337972005,-1075.29,0.00021369,2]
[330379256,1719337972017,-1534.29,0.00021369,2]
[330379257,1719337972028,-500.0,0.00021369,2]
[330379258,1719337972038,-500.0,0.00021369,2]
[330379259,1719337972047,-1408.46,0.00021369,2]
[330379260,1719337972058,-545.9,0.00021369,2]
[330379261,1719337972068,-721.67,0.00021369,2]
[330379262,1719337972078,-881.26,0.00021369,2]
[330379263,1719337972087,-1154.57,0.00021369,2]
[330379264,1719337972097,-1299.57,0.00021369,2]
[330379265,1719337972106,-500.0,0.00021369,2]
[330379266,1719337972116,-561.35,0.00021369,2]
[330379267,1719337972125,-764.04,0.00021369,2]
[330379268,1719337972134,-2576.08,0.00021369,2]
[330379269,1719337972144,-181.54597419,0.00021369,2]
[330379270,1719337972154,-500.0,0.00021369,2]
[330379271,1719337972163,-500.0,0.00021369,2]
[330379272,1719337972176,-500.0,0.00021369,2]